Cogmind - Beta 12 @@@ ROGUE MODE // 2023.06.03 @ 18:54:48 Player: Mr Goldstein Result: Self-destructed Performance ------------- Evolutions (0) 0 Regions Visited (4) 800 Robots Destroyed (0) 0 Value Destroyed (0) 0 Prototype IDs (0) 0 Alien Tech Used (0) 0 Bonus (0) 0 TOTAL SCORE: 800 Bonus ------- None Cogmind --------- Core Integrity 230/250 Matter 300/300 Energy 100/100 System Corruption 0% Temperature Cool (0) Movement Core (50) Location -9/Mines Parts ------- > --- POWER (1) -------- (None) > --- PROPULSION (2) --- (None) > --- UTILITY (2) ------ Advanced Visual Processing Unit > --- WEAPON (2) ------- (None) > --- INVENTORY (5) ---- Improved Heat Sink Small Storage Unit Experimental Sensor Array Peak State ------------ > --- POWER ------------ (None) > --- PROPULSION ------- (None) > --- UTILITY ---------- Advanced Visual Processing Unit > --- WEAPON ----------- (None) > --- INVENTORY -------- Improved Heat Sink Small Storage Unit Experimental Sensor Array [Rating: 4] Favorites ----------- Power None Propulsion None Utility Advanced Visual Processing Unit Processor Advanced Visual Processing Unit Weapon None Build | -11 -10 -10 -10 -9 ------- Run | Jun Mat Min Exi Min Slots Evolved . | . . . . . Power . | . . . . . Propulsion . | . . . . . Utility . | . . . . . Weapon . | . . . . . Parts Attached 1 | . . 1 . . Power . | . . . . . Engine . | . . . . . Core . | . . . . . Reactor . | . . . . . Propulsion . | . . . . . Treads . | . . . . . Leg . | . . . . . Wheel . | . . . . . Hover . | . . . . . Flight . | . . . . . Utility 1 | . . 1 . . Device . | . . . . . Storage . | . . . . . Processor 1 | . . 1 . . Hackware . | . . . . . Protection . | . . . . . Artifact . | . . . . . Weapon . | . . . . . Energy Gun . | . . . . . Energy Cannon . | . . . . . Ballistic Gun . | . . . . . Ballistic Cannon . | . . . . . Launcher . | . . . . . Special Weapon . | . . . . . Impact Weapon . | . . . . . Slashing Weapon . | . . . . . Piercing Weapon . | . . . . . Special Melee Weapon . | . . . . . Unidentified Prototypes . | . . . . . Parts Lost . | . . . . . Power . | . . . . . Propulsion . | . . . . . Utility . | . . . . . Weapon . | . . . . . Highest Loss Streak . | . . . . . To Critical Strikes . | . . . . . Average Slot Usage (%) 10 | . . 12 14 14 Processor 10 | . . 12 14 14 Naked Turns 53 | . 49 4 . . Heaviest Build . | . . . . . Greatest Support 3 | 3 3 3 3 3 Greatest Overweight (x) . | . . . . . Average Overweight (x) . | . . . . . Largest Inventory Capacity 5 | 5 5 5 5 5 Average Capacity 5 | 5 5 5 5 5 Most Carried 3 | 1 1 2 2 3 Average Carried 1 | . 1 1 2 2 Final Capacity 5 | 5 5 5 5 5 Final Carried 3 | 1 1 2 2 3 Class Distribution -------------------- 100% | Mutant Dominant Class ---------------- Mutant | -10/Materials Mutant | -10/Mines Mutant | -10/Exiles Mutant | -9/Mines Resources | -11 -10 -10 -10 -9 ----------- Run | Jun Mat Min Exi Min Matter Collected 207 | 200 . . . 7 Remotely . | . . . . . Salvage Created . | . . . . . Parts . | . . . . . Haulers Intercepted . | . . . . . Recyclers Shooed . | . . . . . Parts Field Recycled . | . . . . . Retrieved Matter . | . . . . . Parts Self-Destructed . | . . . . . Prevented . | . . . . . Kills | -11 -10 -10 -10 -9 ------- Run | Jun Mat Min Exi Min Combat Hostiles Destroyed . | . . . . . Classes Destroyed . | . . . . . Best Kill Streak . | . . . . . Combat Bots Only . | . . . . . Max Kills in Single Turn . | . . . . . Gunslinging . | . . . . . Exploded . | . . . . . Melee . | . . . . . Uniques/NPCs Destroyed . | . . . . . Combat | -11 -10 -10 -10 -9 -------- Run | Jun Mat Min Exi Min Damage Taken 20 | . 2 . . 18 Core 20 | . 2 . . 18 Absorbed by Shields . | . . . . . Core Remaining (%) 100 | 100 . . . . Volleys Fired . | . . . . . Largest . | . . . . . Hottest . | . . . . . Shots Fired . | . . . . . Gun . | . . . . . Cannon . | . . . . . Launcher . | . . . . . Special . | . . . . . Kinetic . | . . . . . Thermal . | . . . . . Explosive . | . . . . . Electromagnetic . | . . . . . Robot Hit Streak . | . . . . . Robot Miss Streak . | . . . . . Penetration Max . | . . . . . Secondary Targets . | . . . . . Shots Hit Robots . | . . . . . Core Hits 2 | . 1 1 . . Critical Kills . | . . . . . Critical Parts Destroyed . | . . . . . Critical Strikes . | . . . . . Melee Attacks . | . . . . . Impact . | . . . . . Slashing . | . . . . . Piercing . | . . . . . Sneak Attacks . | . . . . . Combat Hostiles . | . . . . . Follow-up Attacks . | . . . . . Damage Inflicted 5 | . 4 1 . . Guns . | . . . . . Cannons . | . . . . . Explosions . | . . . . . Melee . | . . . . . Ramming 5 | . 4 1 . . Kinetic . | . . . . . Thermal . | . . . . . Explosive . | . . . . . Electromagnetic . | . . . . . Impact . | . . . . . Slashing . | . . . . . Piercing . | . . . . . Highest Corruption . | . . . . . Average Corruption . | . . . . . Corruption Purged . | . . . . . Corruption Blocked . | . . . . . Overload Shots . | . . . . . Overflow Damage . | . . . . . Projectiles . | . . . . . Explosions . | . . . . . Melee . | . . . . . Knockbacks . | . . . . . Impact . | . . . . . Kinetic . | . . . . . Secondary . | . . . . . Self-Inflicted Damage 2 | . 2 . . . Shots . | . . . . . Rammed 2 | . 1 1 . . Targets Rammed 2 | . 1 1 . . Kicked . | . . . . . Crushed . | . . . . . Highest Temperature . | . . . . . Average Temperature . | . . . . . Received Heat Transfer . | . . . . . Siege Activations . | . . . . . Robots Corrupted . | . . . . . Combat Hostiles . | . . . . . Parts Fried . | . . . . . Impact Corruptions . | . . . . . Robots Melted . | . . . . . Combat Hostiles . | . . . . . Parts Melted . | . . . . . Heat Transferred . | . . . . . Parts Sabotaged . | . . . . . Parts Stolen . | . . . . . Parts Stripped . | . . . . . Power Chain Reactions . | . . . . . Missiles Intercepted . | . . . . . Alert | -11 -10 -10 -10 -9 ------- Run | Jun Mat Min Exi Min Peak Influence 68 | . 60 68 . 15 Initial 23 | . . 23 . . Average 18 | . 40 26 . 1 Maximum Alert Level . | . . . . . Low Security (%) 100 | 100 100 100 . 100 Level 1 . | . . . . . Level 2 . | . . . . . Level 3 . | . . . . . Level 4 . | . . . . . Level 5 . | . . . . . High Security . | . . . . . Max Security . | . . . . . Squads Dispatched 4 | . 3 1 . . Investigation 3 | . 2 1 . . Extermination . | . . . . . Reinforcement 1 | . 1 . . . Assault . | . . . . . Garrison . | . . . . . Intercept . | . . . . . Searches Triggered . | . . . . . Construction Impeded . | . . . . . Haulers Reinforced . | . . . . . Active Scanning Responses . | . . . . . Cargo Convoy Interrupts . | . . . . . Stealth | -11 -10 -10 -10 -9 --------- Run | Jun Mat Min Exi Min Distress Signals 2 | . 1 1 . . Communications Jammed . | . . . . . Distress Signals . | . . . . . Times Spotted 7 | . 5 1 . 1 Peak Tracking Total 6 | . 6 1 . 2 Tactical Retreats . | . . . . . Traps | -11 -10 -10 -10 -9 ------- Run | Jun Mat Min Exi Min Traps Triggered . | . . . . . Indirectly . | . . . . . Trap Hack Attempts . | . . . . . Triggered . | . . . . . Disarmed . | . . . . . Reprogrammed . | . . . . . Reused . | . . . . . Traps Extracted . | . . . . . Installed . | . . . . . Triggered . | . . . . . Machines | -11 -10 -10 -10 -9 ---------- Run | Jun Mat Min Exi Min Machines Disabled . | . . . . . Max in Single Turn . | . . . . . Machines Repaired . | . . . . . Machines Sabotaged . | . . . . . Overloaded Fab Kills . | . . . . . Hacking | -11 -10 -10 -10 -9 --------- Run | Jun Mat Min Exi Min Machines Accessed 4 | . 2 1 1 . Terminals 1 | . 1 . . . Fabricators . | . . . . . Repair Stations . | . . . . . Recycling Units 1 | . 1 . . . Scanalyzers . | . . . . . Garrison Access . | . . . . . Total Hacks 6 | . 4 1 1 . Successful 4 | . 2 1 1 . Failed 2 | . 2 . . . Catastrophic . | . . . . . Database Lockouts . | . . . . . Manual 4 | . 4 . . . Terminals 3 | . 3 . . . Fabricators . | . . . . . Repair Stations . | . . . . . Recycling Units 1 | . 1 . . . Scanalyzers . | . . . . . Garrison Access . | . . . . . Terminal Hacks 3 | . 1 1 1 . Record 1 | . . . 1 . Open Door 1 | . . 1 . . Branch Access Points 1 | . 1 . . . Fabricator Hacks . | . . . . . Repair Station Hacks . | . . . . . Recycling Unit Hacks . | . . . . . Scanalyzer . | . . . . . Garrison Access Hacks . | . . . . . Unauthorized Hacks 1 | . 1 . . . Terminals . | . . . . . Fabricators . | . . . . . Repair Stations . | . . . . . Recycling Units 1 | . 1 . . . Tunnel 1 | . 1 . . . Scanalyzers . | . . . . . Garrison Access . | . . . . . Data Cores Recovered . | . . . . . Used . | . . . . . Hacking Detections 1 | . 1 . . . Full Trace Events 1 | . 1 . . . Feedback Events . | . . . . . Feedback Blocked . | . . . . . Robot Schematics Acquired . | . . . . . Robots Built . | . . . . . Authchips . | . . . . . Time . | . . . . . Total Robot Build Rating . | . . . . . Part Schematics Acquired . | . . . . . Parts Built . | . . . . . Authchips . | . . . . . Time . | . . . . . Total Part Build Rating . | . . . . . Parts Repaired . | . . . . . Time . | . . . . . Parts Recycled . | . . . . . Recycled Matter . | . . . . . Retrieved Matter . | . . . . . Retrieved Components . | . . . . . Parts Scanalyzed . | . . . . . Part Schematics Acquired . | . . . . . Parts Damaged . | . . . . . Bothacking | -11 -10 -10 -10 -9 ------------ Run | Jun Mat Min Exi Min Used RIF Installer . | . . . . . Robots Hacked . | . . . . . Non-combat . | . . . . . Combat . | . . . . . Robot Hacks Applied . | . . . . . Relay Couplers Released . | . . . . . Fabnet Peak Effective % . | . . . . . Robots Rewired . | . . . . . Allies Hacked . | . . . . . Hacks Repelled . | . . . . . Allies | -11 -10 -10 -10 -9 -------- Run | Jun Mat Min Exi Min Total Allies 3 | . . . . 3 Largest Group 3 | . . . . 3 Highest-Rated Group 40 | . . . . 40 Highest-Rated Ally 16 | . . . . 16 Total Orders . | . . . . . Ally Attacks 5 | . . . . 5 Total Damage 46 | . . . . 46 Kills . | . . . . . Allies Corrupted . | . . . . . Allies Melted . | . . . . . Intel | -11 -10 -10 -10 -9 ------- Run | Jun Mat Min Exi Min Robot Analysis Total . | . . . . . Derelict Logs Recovered 1 | . . 1 . . Drone Launches . | . . . . . Drone Recoveries . | . . . . . Exploration | -11 -10 -10 -10 -9 ------------- Run | Jun Mat Min Exi Min Turns Passed 277 | 18 49 68 66 76 Spaces Moved 525 | 33 95 128 131 138 Core 525 | 33 95 128 131 138 Treads . | . . . . . Legs . | . . . . . Wheels . | . . . . . Hover . | . . . . . Flight . | . . . . . Fastest Speed 50 | 50 50 50 50 50 Average Speed 50 | 50 50 50 50 50 Slowest Speed 50 | 50 50 50 50 50 Overloaded Moves . | . . . . . Propulsion Burnouts . | . . . . . Robots Hopped . | . . . . . Cave-ins Triggered . | . . . . . Exploration Rate (%) 30 | 3 26 30 54 37 Regions Visited 4 Branch Regions 3 Pre-discovered Areas 3 | . 1 1 1 . Known Exits Taken 1 | . 1 . . . Unknown Exits Taken 3 | 1 . 1 1 . Scrap Searched 1 | . . . . 1 Spaces Dug . | . . . . . Terrain Destroyed . | . . . . . Melee . | . . . . . Projectile . | . . . . . AOE . | . . . . . Terrain Rammed . | . . . . . Walls Destroyed . | . . . . . Machines Disabled . | . . . . . Actions | -11 -10 -10 -10 -9 --------- Run | Jun Mat Min Exi Min Total 532 | 33 95 130 130 144 Wait 5 | . . . . 5 Move 521 | 32 94 127 130 138 Hop . | . . . . . Pick Up 3 | 1 . 1 . 1 Fast Attach 1 | . . 1 . . Attach . | . . . . . Detach . | . . . . . Swap . | . . . . . Drop . | . . . . . Fire . | . . . . . Melee . | . . . . . Ram 2 | . 1 1 . . Kick . | . . . . . Crush . | . . . . . Escape Stasis . | . . . . . Rewire . | . . . . . Trap . | . . . . . Miscellaneous . | . . . . . Route ------- -11/Junkyard -10/Materials -10/Mines -10/Exiles (discovered 2 exits: [*Min x2]) -9/Mines History --------- Turn | Location | Event 8 | -11/Junkyard | Discovered new exit (range 14) 19 | -11/Junkyard | Entered Materials 37 | -10/Materials | Identified exit to Mines 68 | -10/Materials | Entered Mines 70 | -10/Mines | Met a Derelict shopkeep closing up shop 133 | -10/Mines | Deemed a non-threat by the Exiles lab entrance 134 | -10/Mines | Discovered new exit (range 5) 136 | -10/Mines | Entered Exiles 143 | -10/Exiles | Discovered new exit (range 18) 149 | -10/Exiles | Met 8R-AWN 158 | -10/Exiles | Met EX-HEX 175 | -10/Exiles | Met EX-DEC 181 | -10/Exiles | Learned location of Zion (-7) 195 | -10/Exiles | Discovered new exit (range 16) 202 | -10/Exiles | Entered Mines 203 | -9/Mines | Assembled infested the area 219 | -9/Mines | Found a damaged Exp. Sensor Array with a note attached 222 | -9/Mines | Found Prototype Device 239 | -9/Mines | Assisted by bots powering up and referring to "LRC-V3" 278 | -9/Mines | Self-destructed Last Messages --------------- areas because that's where patrols are more likely to show up, but that doesn't do us much good if we can't spot those areas until they're on top of us... With this we can! Deliver it to Megawrench for repairs then we'll never be afraid of an ambush while sneaking around Materials again, ha." 00222_ Acquired Prototype Device. 00239_ Trooper 2a: "Hello LRC-V3. What is your command?" 00239_ Mercenary 2a: "Hello LRC-V3. What is your command?" 00239_ Trooper 2b: "Hello LRC-V3. What is your command?" 00247_ The unstable cave ceiling collapses. 00251_ YI-UF0 mumbles something. 00252_ The unstable cave ceiling collapses. 00259_ YI-UF0: "BOOM!" 00259_ Mercenary 2a destroyed. 00259_ YI-UF0 suffers critical hit (Burn). 00262_ YI-UF0: "BOOSH!" 00262_ Trooper 2a destroyed. 00266_ Trooper 2b destroyed. 00267_ The unstable cave ceiling collapses. 00274_ Acquired 7 matter. Map ----- +----------------------------------------------------+ | ???????# #???????#### #???????? | | ????????# ##?????## #????????????? | | ????????# #????## #?????????????? | | ????????# ????# #?????????????? | | ????????## ????# ##?????????????? | | ?????????### #????## ###??????????????? | | ?????????# #?????## #######???????????? | | ?????????# = ##?????## # #????? | | ?????????# ##?????## # #????? | | ?????????## # ##?????#### %## #???? | | ?????????# ####???### #?? #??? | | ?????????# ##### #???? #? | | ?????????# #?????## | | ?????????### #### ####????????? ##? | | ???????????# ##??# #??????????????###?? | | ???????????# ######## #??????????????????? | | ???????????## ### #??????????????????? | | ???????????## ## [! #??????????????????? | | ??????????## ## ##%####??????????????????? | | ?????????## ##a#?????????????????????? | | ?????????# ### #?????????????????????? | | ?????????# ## ####?# #?????????????????????? | | ?????????# #### ##???## #?????????????????????? | | ?????????# #??####????# #?????????????????????? | | ?????????# ##?????????# ##?????????????????????? | | ?????????# #?????????#@#??????????????????????? | | ?????????# ##????????# #??????????????????????? | | ?????????## ##???????# ####???????????????????? | | ??????????## ##??????# #???????????????????? | | ???????????## #??????# ## #???????????????????? | | ????????????# ##????## ## #???????????????????? | | ????????????# #???## ## ##??????????????????? | | ???????????## ##### ###????????????????? | | ??????????## ##???????????????? | | ??????????# #???????????????? | | ??????????# ####### ##??????????????? | | ??????????# ?????# ##?????????????? | | ??????????## ????# #?????????????? | | ???????????## #???## #?????????????? | | ????????????## #????###### ##?????????????? | | ?????????????#######??????????#####??????????????? | | ?????????????????????????????????????????????????? | | | | | | | | | | | | | | | | | +----------------------------------------------------+ Best States ------------- Heat Dissipation 25 Energy Generation 5 Energy Capacity 100 Matter Stores 300 Matter Capacity 300 Sight Range 20 Terrain Scan Density 10 Evasion (%) 50 Item Schematics ----------------- None Robot Schematics ------------------ None Fabricated ------------ Nothing Alien Tech Used ----------------- None Achievements -------------- None Challenges ------------ None Game ------ Seed MiniBladeStabilizer Manual? 0 Play Time 00:03:33 Cumulative 269.7 hours Start 2023.06.03 @ 18:52:12 End 2023.06.03 @ 18:54:48 Sessions 1 Manual Loads 0 Difficulty Rogue Special Mode None Game No. 796 Rogue 796 Adventurer 0 Explorer 0 Win Type - Total 15 Types 8/0/5/2/0/0/0/0/0 Lore% 89 Gallery% 86 Achievement% 77 Wizard Run 0 Options --------- ASCII 0 Keyboard 0 Movement Numpad Keybinds 0 Fullscreen 1 Font 16/SmallcapsGlow Map View 75x55 Tactical HUD 1 Map Filters NONE Filters NONE Steam 1 RUN: 78c851e7-dd1b-4668-a2e9-95fd8625a5db